bitfinex/quotes_ETHUSD_20220118
["timestamp","ask_amount","ask_price","bid_price","bid_amount"]
[1642487507662,20.93142641,3197.4,3197.3,0.00795793]
[1642487507866,20.93142641,3197.4,3196.3,2.4351167]
[1642487507867,18.42,3197.2,3196.3,2.4351167]
[1642487508064,0.447,3197.1,3196.7,0.00341054]
[1642487508262,18.545,3197.0,3196.7,0.00341054]
[1642487508464,0.447,3196.9,3196.7,0.00341054]
[1642487508662,0.125,3196.8,3196.7,0.00341054]
[1642487508903,0.872,3196.8,3196.7,0.00341054]
[1642487509306,0.425,3196.8,3196.7,0.00341054]
[1642487509506,0.3,3196.8,3196.7,0.00341054]
[1642487510108,0.425,3197.1,3196.7,0.00341054]
[1642487510508,0.125,3197.1,3196.7,0.00341054]
[1642487511207,0.125,3197.1,3195.9,2.3101167]
[1642487511208,0.125,3197.1,3196.0,0.0073895]
[1642487511410,1.172,3197.2,3196.0,0.0073895]
[1642487511807,18.42,3197.1,3196.0,0.0073895]
[1642487512008,0.125,3197.0,3196.0,0.0073895]
[1642487513068,0.125,3197.0,3195.9,2.2675062]
[1642487513069,5.7,3196.9,3195.9,2.2675062]
[1642487513268,21.48127885,3196.8,3195.9,2.2675062]
[1642487513468,21.78127885,3196.8,3195.7,4.22121033]
[1642487513669,18.42397896,3196.7,3195.7,1.1409]
[1642487513870,2.75071573,3196.6,3196.0,0.53470307]
[1642487514167,1.47552896,3196.4,3196.0,0.53470307]
[1642487514369,2.52033656,3196.3,3196.0,0.53470307]
[1642487514569,2.52204183,3196.3,3196.0,0.53470307]
[1642487514772,0.00113685,3196.2,3196.0,0.53470307]
[1642487515773,0.00113685,3196.2,3195.9,0.53470307]
[1642487516503,3.40113685,3196.2,3195.9,0.53470307]
[1642487516704,21.82113685,3196.2,3195.9,0.53470307]
[1642487516904,3.40113685,3196.2,3195.9,0.53470307]
[1642487518011,0.125,3196.1,3195.9,0.53470307]
[1642487519012,0.125,3196.1,3195.8,0.00113685]
[1642487519013,0.425,3196.1,3195.8,0.00113685]
[1642487519211,1.1582,3196.1,3195.8,0.00113685]
[1642487519414,18.42,3196.0,3195.7,0.00170527]
[1642487519619,0.125,3195.9,3195.7,0.00170527]
[1642487519917,18.545,3195.9,3195.7,0.00170527]
[1642487520360,6.147,3195.8,3195.3,0.125298]
[1642487520661,6.147,3195.8,3195.4,0.00170527]
[1642487520662,18.845,3195.7,3195.4,0.00170527]
[1642487520859,18.845,3195.7,3195.1,0.125]
[1642487520860,24.12,3195.6,3195.1,0.125]
[1642487521060,0.572,3195.5,3195.1,0.125]
[1642487521258,1.28049477,3195.4,3195.2,0.00113685]
[1642487521461,3.85,3195.2,3195.1,0.07613685]
[1642487521662,0.00113685,3195.6,3194.9,3.08031033]
[1642487522059,0.00170527,3195.5,3195.0,0.00113685]
[1642487522462,18.545,3195.8,3195.0,0.00113685]
[1642487522463,2.00113685,3195.4,3195.0,0.00113685]
[1642487522858,2.0,3195.4,3194.8,0.00227369]
[1642487523559,20.42,3195.4,3194.8,0.00227369]
[1642487525008,20.72,3195.4,3194.8,0.00227369]
[1642487525305,21.02,3195.4,3194.8,0.00227369]
[1642487525504,18.545,3195.3,3194.8,0.00227369]
[1642487526104,20.98514816,3195.3,3194.6,0.00341054]
[1642487526304,20.98514816,3195.3,3194.0,3.283212]
[1642487526305,20.98514816,3195.3,3194.5,0.00397896]
[1642487526706,0.447,3195.2,3194.2,0.00568423]
[1642487526904,0.1252,3195.1,3194.2,0.00568423]
[1642487527104,18.5452,3195.1,3194.2,0.00568423]
[1642487527306,18.5452,3195.1,3194.2,2.30366141]
[1642487527510,18.42,3195.0,3194.2,2.30366141]
[1642487527758,18.42,3194.7,3194.3,0.00511581]
[1642487527960,0.1252,3194.6,3194.3,0.00511581]
[1642487528361,18.5452,3194.6,3194.3,0.00511581]
[1642487529362,20.33969336,3194.5,3194.4,0.72051267]
[1642487529559,20.63969336,3194.5,3194.4,0.72051267]
[1642487530166,5.7,3194.4,3193.7,2.29797718]
[1642487530361,5.7,3194.4,3194.0,1.53340732]
[1642487530362,6.147,3194.4,3194.0,1.53340732]
[1642487530563,0.1252,3194.3,3194.0,1.53340732]
[1642487530763,0.447,3194.2,3194.0,1.53340732]
[1642487530962,24.2452,3194.1,3194.0,1.53340732]
[1642487531159,24.9922,3194.1,3194.0,1.53340732]
[1642487531404,24.9922,3194.1,3194.0,0.00682108]
[1642487531704,24.9922,3194.1,3193.6,0.00909477]
[1642487531705,19.5922,3194.1,3193.6,0.00909477]
[1642487531905,6.02347087,3193.7,3193.5,2.09e-06]
[1642487532105,24.6922,3193.6,3193.3,2.29797718]
[1642487532504,18.9922,3193.6,3193.4,0.00113685]
[1642487533108,0.5722,3193.6,3193.4,0.00113685]
[1642487533310,21.49666394,3194.0,3193.4,0.00113685]
[1642487533512,3.07666394,3194.0,3193.8,1.13836544]
[1642487533709,0.00170527,3193.9,3193.4,0.00113685]
[1642487534108,0.00113684,3193.8,3193.0,0.00341055]
[1642487534308,0.00113684,3193.8,3193.1,0.1252]
[1642487534509,0.00170527,3193.9,3193.1,0.1252]
[1642487534809,0.00113684,3193.8,3193.4,1.2224479]
[1642487535259,0.00170527,3193.9,3193.4,1.2224479]
[1642487535657,0.00113684,3193.8,3193.4,1.2224479]
[1642487535855,0.00113684,3193.8,3193.7,1.36983667]
[1642487536055,19.9472,3194.3,3193.7,1.36983667]
[1642487536056,0.00341054,3194.2,3193.7,1.36983667]
[1642487536255,0.00113684,3193.8,3193.7,1.36983667]
[1642487536456,0.00284211,3194.1,3193.7,1.36983667]
[1642487536657,0.00113684,3193.8,3193.7,1.36983667]
[1642487536858,3.1,3193.9,3193.7,1.36983667]
[1642487537063,0.00113684,3193.8,3193.7,1.36983667]
[1642487540308,0.00113684,3193.8,3193.4,1.2224479]
[1642487540810,18.42113684,3193.8,3193.2,3.53205088]
[1642487541008,18.42113684,3193.8,3193.2,2.30025088]
[1642487541308,18.42113684,3193.8,3193.3,0.00170527]
[1642487541508,0.00113684,3193.8,3193.4,1.33923211]
[1642487541708,0.00113684,3193.8,3193.5,1.30050425]
[1642487542109,0.00113684,3193.8,3193.5,3.78332022]
[1642487542310,0.00113684,3193.8,3193.5,4.08332022]
[1642487542508,0.00113684,3193.8,3193.5,1.60050425]
[1642487542768,0.00113684,3193.8,3193.5,1.55940425]
[1642487543970,0.00113684,3193.8,3193.5,1.30050425]
[1642487544973,0.00113684,3193.8,3193.5,1.60050425]
[1642487545171,0.00113684,3193.8,3193.5,2.60050425]
[1642487545572,0.00113684,3193.8,3193.5,4.89848143]
[1642487547312,0.00113684,3193.8,3193.6,2.29797718]
[1642487548111,9.00113684,3193.8,3193.6,2.29797718]
[1642487548314,9.00113684,3193.8,3193.5,4.89848143]
[1642487549113,9.00113684,3193.8,3193.5,7.70691259]
[1642487549313,9.00113684,3193.8,3193.5,5.40893541]
[1642487549514,9.00113684,3193.8,3193.6,0.1252]
[1642487550352,9.00113684,3193.8,3193.6,3.20551033]
[1642487550552,9.00113684,3193.8,3193.7,5.5]
[1642487550553,7.43789773,3193.8,3193.7,5.5]
[1642487550753,7.43789773,3193.8,3193.7,1.0]
[1642487550956,7.43789773,3193.8,3193.7,1.3]
[1642487551156,0.01274045,3193.9,3193.8,5.7]
[1642487551365,0.01274045,3193.9,3193.8,8.59299653]
[1642487551560,0.01274045,3193.9,3193.8,9.59299653]
[1642487552458,0.01274045,3193.9,3193.8,10.07850013]
[1642487552661,2.1252,3195.4,3195.0,1.41298487]
[1642487552861,2.0,3195.4,3195.0,1.41298487]
[1642487553061,0.00738951,3195.1,3195.0,1.71298487]
[1642487553662,0.00738951,3195.1,3195.0,2.71298487]
[1642487553916,0.00738951,3195.1,3195.0,1.71298487]
[1642487554115,0.00738951,3195.1,3195.0,2.71298487]
[1642487554315,0.00738951,3195.1,3195.0,1.71298487]
[1642487554517,0.00738951,3195.1,3195.0,2.71298487]
[1642487554815,0.00738951,3195.1,3195.0,4.22398919]
[1642487556120,0.00738951,3195.1,3195.0,2.71298487]
[1642487556518,0.00738951,3195.1,3195.0,1.71298487]
[1642487556718,0.00738951,3195.1,3195.0,2.71298487]
[1642487556918,3.10738951,3195.1,3195.0,1.71298487]
[1642487557119,3.10738951,3195.1,3195.0,2.71298487]
[1642487557320,3.10738951,3195.1,3195.0,1.71298487]
[1642487557518,3.10738951,3195.1,3195.0,2.71298487]
[1642487557760,3.10738951,3195.1,3195.0,1.71298487]
[1642487559361,3.10738951,3195.1,3195.0,4.71031608]
[1642487559562,3.10738951,3195.1,3195.0,6.15731608]
[1642487559961,3.10738951,3195.1,3195.0,3.45998487]
[1642487560163,2.0,3195.4,3195.1,5.7]
[1642487560362,2.0,3195.4,3195.2,2.75357196]
[1642487560563,0.00113684,3195.3,3195.2,4.35357196]
[1642487560761,0.00113684,3195.3,3195.2,4.80057196]
[1642487560963,2.0,3195.4,3195.3,5.7]
[1642487561269,2.0,3195.4,3195.3,9.76301919]
[1642487561513,2.0,3195.4,3195.3,7.147]
[1642487561709,2.0,3195.4,3195.3,1.447]
[1642487561910,2.0,3195.4,3195.3,2.947]
[1642487562109,2.0,3195.4,3195.3,3.947]
[1642487562309,2.0,3195.4,3195.3,6.25305889]
[1642487562510,2.0,3195.4,3195.3,6.37805889]
[1642487563413,2.0,3195.4,3195.3,1.572]
[1642487563616,2.0,3195.4,3195.3,0.447]
[1642487567865,5.1,3195.4,3195.3,0.447]
[1642487572761,5.1,3195.4,3195.2,0.3]
[1642487572963,5.1,3195.4,3195.1,0.8]
[1642487573161,5.1,3195.4,3195.1,1.8]
[1642487573361,5.1,3195.4,3195.1,0.8]
[1642487573561,5.1,3195.4,3195.1,1.3]
[1642487573762,5.1,3195.4,3195.0,0.3]
[1642487574062,5.1,3195.4,3195.1,0.00113684]
[1642487574664,2.67357874,3195.3,3195.1,0.00113684]
[1642487574963,2.66524076,3195.3,3195.0,1.00170527]
[1642487575163,2.66524076,3195.3,3195.0,0.00170527]
[1642487575563,5.1,3195.4,3195.0,0.30170527]
[1642487576822,5.4,3195.4,3195.0,0.30170527]
[1642487577422,2.60771617,3195.3,3195.0,0.00170527]
[1642487577820,2.60771617,3195.3,3194.7,0.00341054]
[1642487578023,21.02771617,3195.3,3194.7,0.00341054]
[1642487578220,21.02771617,3195.3,3194.5,0.00454738]
[1642487578521,4.07169561,3195.3,3194.5,0.00454738]
[1642487579922,4.07169561,3195.3,3194.4,0.00511581]
[1642487580163,2.60771617,3195.3,3194.4,0.00511581]
[1642487580560,0.125,3195.3,3194.4,0.00511581]
[1642487580959,0.125,3195.3,3194.4,1.00511581]
[1642487581258,8.80070098,3195.4,3194.5,0.12974738]
[1642487581558,8.80070098,3195.4,3194.6,0.00397896]
[1642487581758,9.10070098,3195.4,3194.6,0.00397896]
[1642487582062,9.10070098,3195.4,3194.5,0.00454738]
[1642487582063,8.02073603,3195.4,3194.5,0.00454738]
[1642487582260,5.5252,3195.4,3194.5,0.00454738]
[1642487582861,23.9452,3195.4,3194.5,0.00454738]
[1642487583260,23.9452,3195.4,3194.3,4.62964305]
[1642487583261,2.49852898,3195.3,3194.4,0.00511581]
[1642487583461,0.1252,3195.2,3194.4,0.00511581]
[1642487583662,19.6547,3195.2,3194.4,0.00511581]
[1642487583913,18.42,3195.0,3194.4,0.00511581]
[1642487584112,0.1252,3194.9,3194.4,0.00511581]
[1642487584813,0.1252,3194.9,3194.2,0.00625265]
[1642487585112,0.1252,3195.0,3194.2,0.00625265]
[1642487585712,0.1252,3195.0,3194.1,0.00682108]
[1642487585913,21.17900507,3195.0,3194.1,0.00682108]
[1642487586113,22.78330557,3195.0,3194.0,0.0073895]
[1642487587316,21.99550098,3194.9,3194.0,0.0073895]
[1642487587515,21.19880132,3194.8,3194.0,0.0073895]
[1642487587764,2.77880132,3194.8,3194.0,0.0073895]
[1642487587966,0.1252,3194.8,3194.0,0.0073895]
[1642487588166,1.7295005,3194.8,3194.0,0.0073895]
[1642487588967,0.1252,3194.8,3194.0,0.0073895]
[1642487589164,3.57550098,3195.0,3194.4,1.34187891]
[1642487589165,3.70070098,3195.0,3194.4,1.34187891]
[1642487589363,3.70070098,3195.0,3194.4,1.64187891]
[1642487589564,3.70070098,3195.0,3194.5,0.00454738]
[1642487589772,3.57550098,3195.0,3194.5,0.00454738]
[1642487590868,1.2182,3195.1,3194.5,0.00454738]
[1642487591705,1.5182,3195.1,3194.5,0.00454738]
[1642487591906,1.2182,3195.1,3194.5,0.00454738]
[1642487593110,1.2182,3195.1,3194.5,0.12974738]
[1642487593311,1.2182,3195.1,3194.5,0.00454738]
[1642487593510,1.2182,3195.1,3194.6,0.00397896]
[1642487593712,1.2182,3195.1,3194.5,0.00454738]
[1642487595760,2.67417428,3195.0,3194.5,0.00454738]
[1642487596261,2.67417428,3195.0,3194.2,0.00625265]
[1642487596462,2.67417428,3195.0,3194.3,0.1252]
[1642487596860,2.67417428,3195.0,3194.4,0.00511581]
[1642487597061,0.3,3194.9,3194.4,0.00511581]
[1642487597362,1.5182,3195.1,3194.4,0.00511581]
[1642487597864,1.2182,3195.1,3194.4,0.00511581]
[1642487602807,1.2182,3195.1,3194.3,0.00568423]
[1642487604007,1.3434,3195.1,3194.2,0.00625265]
[1642487604909,1.2182,3195.1,3194.2,0.00625265]
[1642487606311,20.96073772,3195.0,3194.2,0.00625265]
[1642487606511,0.1252,3194.9,3194.2,0.00625265]
[1642487608416,0.1252,3194.9,3193.9,0.00795792]
[1642487608817,2.67475848,3194.8,3193.9,0.13315792]
[1642487609017,2.62475848,3194.8,3193.9,0.13315792]
[1642487609217,2.62475848,3194.8,3194.0,0.0073895]
[1642487609818,3.56941868,3194.9,3194.0,0.0073895]
[1642487610281,3.56941868,3194.9,3194.3,1.10824401]
[1642487610689,3.56941868,3194.9,3194.4,0.00511581]
[1642487611086,1.2182,3195.1,3194.4,0.00511581]
[1642487612287,1.2182,3195.1,3194.4,0.13031581]
[1642487612587,1.2182,3195.1,3194.5,0.00454738]
[1642487614916,1.2182,3195.1,3194.4,0.02974738]
[1642487615116,0.00284211,3195.0,3194.4,0.02974738]
[1642487615520,1.2182,3195.1,3194.4,0.32974738]
[1642487615521,0.00227369,3194.9,3194.4,0.32974738]
[1642487615921,0.00170527,3194.8,3194.4,0.32974738]
[1642487616122,0.00170527,3194.8,3194.4,0.02974738]
[1642487616321,2.56614647,3195.0,3194.4,0.02974738]
[1642487616322,0.00113684,3194.7,3194.4,0.02974738]
[1642487616821,0.12747369,3194.9,3194.4,0.02974738]
[1642487617020,0.12747369,3194.9,3193.8,0.1252]
[1642487617220,1.48942404,3194.6,3193.8,0.1252]
[1642487617420,2.50151922,3194.5,3193.9,0.00341054]
[1642487617670,2.45851072,3194.5,3193.9,0.53847747]
[1642487617868,2.45851072,3194.5,3193.9,0.83847747]
[1642487618069,1.78942404,3194.6,3194.0,0.00284212]
[1642487618273,0.3,3194.6,3194.0,0.00284212]
[1642487618568,0.00170527,3194.8,3194.0,0.00284212]
[1642487618969,0.4252,3194.9,3194.0,0.00284212]
[1642487618970,0.00113684,3194.7,3194.0,0.00284212]
[1642487619370,3.10170527,3194.8,3194.0,0.00284212]
[1642487619573,0.1252,3194.7,3194.0,0.00284212]
[1642487619769,0.12633684,3194.7,3194.0,0.00284212]
[1642487621414,0.00113684,3194.7,3193.7,0.00454739]
[1642487621621,0.00113684,3194.7,3194.0,0.00284212]
[1642487621918,0.00113684,3194.7,3193.7,0.00454739]
[1642487623121,0.00113684,3194.7,3193.8,0.1252]
[1642487624521,0.12633684,3194.7,3193.7,0.00454739]
[1642487626163,2.95501833,3194.7,3193.7,0.00454739]
[1642487626362,25.57661833,3194.7,3193.7,0.00454739]
[1642487626560,25.87661833,3194.7,3193.7,0.00454739]
[1642487626761,18.42,3194.6,3193.7,0.00454739]
[1642487626959,0.1252,3194.5,3193.7,0.00454739]
[1642487627360,0.1252,3194.5,3193.4,0.00625266]
[1642487628162,0.1252,3194.5,3193.5,0.53509154]
[1642487628563,0.1252,3194.5,3193.6,0.00511581]
[1642487629414,0.1252,3194.5,3193.7,0.53509154]
[1642487629714,0.1252,3194.5,3193.8,0.00397897]
[1642487631220,0.1252,3194.5,3193.4,0.00625266]
[1642487632219,0.1252,3194.5,3193.5,0.53508514]
[1642487632420,22.4577,3194.6,3193.5,0.66028514]
[1642487632680,22.4577,3194.6,3193.6,0.00511581]
[1642487633879,22.4577,3194.6,3193.7,0.53508514]
[1642487634277,22.4577,3194.6,3193.8,0.00397897]
[1642487635678,22.4577,3194.6,3193.4,1.00625266]
[1642487636079,22.4577,3194.6,3193.5,0.00568424]
[1642487636510,22.4577,3194.6,3193.4,0.00625266]
[1642487636713,22.4577,3194.6,3193.6,0.53512043]
[1642487637110,22.4577,3194.6,3193.7,0.00454739]
[1642487638015,22.4577,3194.6,3193.8,0.53512043]
[1642487639116,22.4577,3194.6,3193.8,0.55574191]
[1642487640676,18.42,3194.4,3193.8,0.55574191]
[1642487640877,18.5452,3194.4,3193.8,0.55574191]
[1642487641078,18.42,3194.3,3193.8,0.02062148]
[1642487641279,0.1252,3194.2,3193.8,0.02062148]
[1642487641778,18.5452,3194.2,3193.8,0.02062148]
[1642487642177,24.80782047,3194.2,3193.8,0.02062148]
[1642487642377,24.68262047,3194.2,3193.8,0.02062148]
[1642487643180,2.67519304,3194.1,3193.8,0.02062148]
[1642487643382,2.66519304,3194.1,3193.8,0.02062148]
[1642487644218,2.66519304,3194.1,3193.7,0.00454739]
[1642487644818,21.08519304,3194.1,3193.7,0.00454739]
[1642487645621,2.66519304,3194.1,3193.7,0.00454739]
[1642487645822,18.72,3194.4,3193.7,0.00454739]
[1642487646025,0.1252,3194.3,3193.7,0.00454739]
[1642487646824,18.5452,3194.3,3193.7,0.00454739]
[1642487647228,18.42,3194.3,3193.7,0.00454739]
[1642487649069,18.72,3194.3,3193.7,0.00454739]
[1642487649268,0.1252,3194.2,3193.7,0.00454739]
[1642487649469,19.7481,3194.2,3193.6,0.00511581]
[1642487649669,18.72,3194.1,3193.6,0.00511581]
[1642487650069,19.02,3194.1,3193.6,0.00511581]
[1642487652009,0.1252,3194.0,3193.6,0.00511581]
[1642487652613,0.1152,3194.0,3193.6,0.00511581]
[1642487653415,1.2029,3194.2,3193.6,0.0451461]
[1642487653615,1.2029,3194.2,3193.6,0.00511581]
[1642487653815,1.2029,3194.2,3193.7,0.00454739]
[1642487654015,1.2029,3194.2,3193.6,0.00511581]
[1642487654218,1.2029,3194.2,3193.7,0.01754577]
[1642487654715,1.2029,3194.2,3193.8,0.00397897]
[1642487655172,0.3,3194.1,3193.8,0.00397897]
[1642487658774,18.72,3194.1,3193.8,0.00397897]
[1642487659015,0.3,3194.1,3193.8,0.00397897]
[1642487659216,0.3,3194.1,3193.9,0.01803946]
[1642487659515,0.3,3194.1,3194.0,0.00284212]
[1642487660415,18.72,3194.1,3194.0,0.00284212]
[1642487661919,18.8452,3194.1,3194.0,0.00284212]
[1642487662120,22.43290862,3194.1,3194.0,0.00284212]
[1642487662774,4.01290862,3194.1,3194.0,0.00284212]
[1642487663972,2.97554799,3194.1,3194.0,0.00284212]
[1642487664175,2.97554799,3194.1,3194.0,0.02086726]
[1642487669123,2.67554799,3194.1,3194.0,0.02086726]
[1642487670968,2.67554799,3194.2,3194.0,0.02086726]
[1642487671366,2.67554799,3194.2,3194.1,0.0022737]
[1642487671967,3.1,3194.3,3194.1,0.0022737]
[1642487672874,3.4,3194.3,3194.1,0.0022737]
[1642487674520,3.4,3194.3,3194.0,0.00284212]
[1642487676925,3.7,3194.3,3194.0,0.00284212]
[1642487677876,6.15133501,3194.3,3194.0,0.00284212]
[1642487678075,0.1252,3194.2,3194.0,0.00284212]
[1642487678676,2.60242263,3194.2,3194.0,0.00284212]
[1642487678977,0.1252,3194.2,3194.0,0.00284212]
[1642487679178,2.55049628,3194.2,3194.1,0.01801538]
[1642487679578,6.1382049,3194.2,3194.1,0.02028908]
[1642487680380,3.71290862,3194.2,3194.1,0.02028908]
[1642487680579,3.58770862,3194.2,3194.1,0.02028908]
[1642487681620,5.0448,3194.3,3194.1,0.02028908]
[1642487682022,5.0448,3194.3,3194.2,0.00170527]
[1642487682221,4.9196,3194.3,3194.2,0.00170527]
[1642487682825,7.35572835,3194.3,3194.2,0.00170527]
[1642487683024,25.77572835,3194.3,3194.2,0.00170527]
[1642487683426,25.90092835,3194.3,3194.2,0.00170527]
[1642487684025,29.48863697,3194.3,3194.2,0.00170527]
[1642487685270,11.06863697,3194.3,3194.2,0.00170527]
[1642487685870,12.66504717,3194.3,3194.2,0.00170527]
[1642487686469,31.08504717,3194.3,3194.2,0.00170527]
[1642487686870,7.48092835,3194.3,3194.2,0.00170527]
[1642487687569,8.48092835,3194.3,3194.2,0.00170527]
[1642487687772,16.3406494,3194.3,3194.2,0.00170527]
[1642487688774,14.7442392,3194.3,3194.2,0.00170527]
[1642487689827,11.15653058,3194.3,3194.2,0.00170527]
[1642487690927,12.76188713,3194.3,3194.2,0.00170527]
[1642487691728,11.15653058,3194.3,3194.2,0.00170527]
[1642487692527,8.72040223,3194.3,3194.2,0.00170527]
[1642487693576,10.32575878,3194.3,3194.2,0.00170527]
[1642487694876,9.32575878,3194.3,3194.2,0.00170527]
[1642487695276,7.72040223,3194.3,3194.2,0.00170527]
[1642487696078,7.59520223,3194.3,3194.2,0.00170527]
[1642487697621,11.18291085,3194.3,3194.2,0.00170527]
[1642487698220,7.59520223,3194.3,3194.2,0.00170527]
[1642487699525,26.01520223,3194.3,3194.2,0.00170527]
[1642487699724,7.59520223,3194.3,3194.2,0.00170527]
[1642487699924,26.01520223,3194.3,3194.2,0.00170527]
[1642487700566,11.18291085,3194.3,3194.2,0.00170527]
[1642487701570,9.32575878,3194.3,3194.2,0.00170527]
[1642487701768,11.89845095,3194.3,3194.2,0.00170527]
[1642487702167,9.32575878,3194.3,3194.2,0.00170527]
[1642487702367,9.20055878,3194.3,3194.2,0.00170527]
[1642487702567,7.59520223,3194.3,3194.2,0.00170527]
[1642487705520,10.05607341,3194.3,3194.2,0.00170527]
[1642487706127,7.59520223,3194.3,3194.2,0.00170527]
[1642487707028,9.20045305,3194.3,3194.2,0.00170527]
[1642487707526,11.64465233,3194.3,3194.2,0.00170527]
[1642487707780,11.76985233,3194.3,3194.2,0.00170527]
[1642487708379,30.18985233,3194.3,3194.2,0.00170527]
[1642487708580,28.58460151,3194.3,3194.2,0.00170527]
[1642487708783,28.58460151,3194.3,3194.1,0.01801538]
[1642487708784,5.8252,3194.2,3194.1,0.01801538]
[1642487708981,9.07818709,3194.2,3194.1,0.01801538]
[1642487709185,27.94518709,3194.2,3193.1,0.01601273]
[1642487709581,27.94518709,3194.2,3193.2,0.00568424]
[1642487710885,1.60556968,3193.8,3193.2,0.00568424]
[1642487711084,1.46103869,3193.6,3193.2,0.00568424]
[1642487711519,1.76103869,3193.6,3193.2,0.00568424]
[1642487711919,2.4289963,3193.5,3193.2,0.00568424]
[1642487712321,0.3,3193.5,3193.2,0.00568424]
[1642487712524,2.67560223,3193.5,3193.2,0.00568424]
[1642487714228,5.77560223,3193.5,3193.2,0.00568424]
[1642487714628,5.77560223,3193.5,3193.0,0.00682109]
[1642487714929,6.07560223,3193.5,3193.0,0.00682109]
[1642487715173,6.37560223,3193.5,3193.0,0.00682109]
[1642487715568,8.79966438,3193.5,3193.0,0.00682109]
[1642487715771,8.77516016,3193.5,3193.0,0.00682109]
[1642487715970,6.37143168,3193.5,3193.0,0.00682109]
[1642487716270,6.37143168,3193.5,3192.8,1.00795793]
[1642487716671,6.37143168,3193.5,3192.9,0.00738951]
[1642487716874,6.07560223,3193.5,3192.9,0.00738951]
[1642487717471,6.07560223,3193.5,3193.0,0.53526132]
[1642487717472,2.67560223,3193.4,3193.0,0.53526132]
[1642487717875,2.67560223,3193.4,3193.1,0.00625266]
[1642487719321,2.67560223,3193.4,3192.7,0.04999999]
[1642487719322,2.67560223,3193.4,3192.8,0.00795793]
[1642487720522,3.4,3193.5,3192.9,0.53525604]
[1642487720725,2.46919078,3193.4,3192.9,0.53525604]
[1642487720923,3.7,3193.5,3193.0,0.00682109]
[1642487721724,2.67620246,3193.3,3193.0,0.00682109]
[1642487721924,2.97620246,3193.3,3193.0,0.00682109]
[1642487722324,2.97620246,3193.3,3192.7,0.00852636]
[1642487723176,0.3,3193.3,3192.7,0.00852636]
[1642487723377,3.7,3193.5,3192.8,0.53524517]
[1642487723777,3.7,3193.5,3192.9,0.00738951]
[1642487723979,3.8252,3193.5,3192.9,0.00738951]
[1642487725079,3.7,3193.5,3192.9,0.00738951]
[1642487725276,3.7,3193.5,3192.4,0.01023163]
[1642487725478,2.67618591,3193.4,3192.4,0.01023163]
[1642487726078,2.67618591,3193.4,3192.5,0.53527201]
[1642487726280,2.67618591,3193.4,3192.5,0.48527201]
[1642487726527,2.67618591,3193.4,3192.6,0.00909478]
[1642487727626,2.67618591,3193.4,3192.4,0.01023163]
[1642487728829,2.67618591,3193.4,3192.4,0.13543163]
[1642487729228,4.8865,3193.5,3192.5,0.0096632]
[1642487731075,2.67606922,3193.4,3192.5,2.32890637]
[1642487731477,2.67606922,3193.4,3192.6,2.32833795]
[1642487731875,2.67606922,3193.4,3192.7,0.00852636]
[1642487732481,2.67606922,3193.4,3193.0,1.22923761]
[1642487732680,2.67606922,3193.4,3192.7,3.20812769]
[1642487732882,2.67606922,3193.4,3193.1,0.00625266]
[1642487733082,2.67606922,3193.4,3193.0,0.447]
[1642487733284,2.67606922,3193.4,3193.1,0.1252]
[1642487733582,2.67606922,3193.4,3193.1,0.13145266]
[1642487734622,2.67606922,3193.4,3193.1,0.00625266]
[1642487737978,2.67606922,3193.4,3193.1,0.45325266]
[1642487738175,2.67606922,3193.4,3193.2,2.59758903]
[1642487738378,2.67606922,3193.4,3193.3,5.8252]
[1642487738578,3.1,3193.5,3193.3,12.35542102]
[1642487738877,3.1,3193.5,3193.4,5.70454739]
[1642487738878,0.97075529,3193.5,3193.4,5.70454739]
[1642487739076,0.97075529,3193.5,3193.4,7.70074739]
[1642487739278,1.60556968,3194.3,3194.0,1.36042482]
[1642487739279,3.58770862,3194.3,3194.0,1.36042482]
[1642487739479,3.58770862,3194.3,3194.1,0.447]
[1642487740980,1.60556968,3194.9,3194.1,0.447]
[1642487741180,1.90556968,3194.9,3194.1,0.447]
[1642487741419,0.00113684,3194.4,3194.1,0.447]
[1642487743627,0.00113684,3194.4,3194.2,0.1252]
[1642487743827,0.00113684,3194.4,3194.3,5.747]
[1642487744230,0.00113684,3194.4,3194.3,6.747]
[1642487744429,0.00113684,3194.4,3194.3,1.447]
[1642487744627,0.00113684,3194.4,3194.3,0.447]
[1642487745273,3.10113684,3194.4,3194.3,0.447]
[1642487747783,3.40113684,3194.4,3194.3,0.447]
[1642487748924,3.40113684,3194.4,3193.8,1.6317]
[1642487749125,3.40113684,3194.4,3193.8,0.447]
[1642487749326,3.40113684,3194.4,3193.9,0.00170527]
[1642487750636,3.10113684,3194.4,3193.9,0.00170527]
[1642487751031,3.10113684,3194.4,3194.0,0.447]
[1642487751628,3.10113684,3194.4,3194.0,0.747]
[1642487751829,3.10113684,3194.4,3194.0,1.047]
[1642487752681,3.10113684,3194.4,3194.0,1.1722]
[1642487754180,3.10113684,3194.4,3194.0,1.047]
[1642487754579,0.953,3194.0,3193.9,0.00170527]
[1642487757222,0.953,3194.0,3193.9,2.50714719]
[1642487757422,0.953,3194.0,3193.9,3.50714719]
[1642487758431,0.953,3194.0,3193.9,1.00170527]
[1642487758628,0.953,3194.0,3193.9,0.00170527]
[1642487758830,0.953,3194.0,3193.9,0.44870527]
[1642487759230,0.953,3194.0,3193.9,0.98382557]
[1642487760774,0.953,3194.0,3193.9,3.48723623]
[1642487760976,0.953,3194.0,3193.9,0.98382557]
[1642487761174,0.953,3194.0,3193.9,1.98382557]
[1642487761379,0.953,3194.0,3193.9,4.52376436]
[1642487761574,3.10113684,3194.4,3194.0,5.7]
[1642487761872,3.10113684,3194.4,3194.1,3.46358818]
[1642487762071,3.10113684,3194.4,3194.2,1.447]
[1642487762672,3.10113684,3194.4,3194.2,0.447]
[1642487764927,3.10113684,3194.4,3194.2,0.50067299]
[1642487765527,3.10113684,3194.4,3194.2,1.50067299]
[1642487766132,3.10113684,3194.4,3194.3,6.24273734]
[1642487766330,3.10113684,3194.4,3194.3,2.52478824]
[1642487766530,3.10113684,3194.4,3194.3,3.82478824]
[1642487766731,2.60113684,3194.4,3194.3,3.82478824]
[1642487767330,2.60013684,3194.4,3194.3,6.42478824]
[1642487767530,2.60013684,3194.4,3194.3,9.07552719]
[1642487767785,2.10113684,3194.4,3194.3,7.04517629]
[1642487768384,2.10013684,3194.4,3194.3,7.04517629]
[1642487768788,2.10013684,3194.4,3194.3,4.39443734]
[1642487769084,1.60113684,3194.4,3194.3,3.28973734]
[1642487769283,1.60013684,3194.4,3194.3,4.9074998]
[1642487769486,1.60013684,3194.4,3194.3,3.3074998]